[Event "HUN-ch U8-U18 2019"]
[Site "Balatonlelle"]
[Date "2019.06.23"]
[Round "3.8"]
[White "Karacsonyi, Gellert"]
[Black "Virag, Balint"]
[Result "1/2-1/2"]
[ECO "C07"]
[WhiteElo "2304"]
[BlackElo "2173"]
[Annotator "NA"]
[PlyCount "83"]
[EventDate "2019.06.21"]
[EventType "swiss"]
[EventCountry "HUN"]
[SourceTitle "playchess.com"]
[Source "ChessBase"]
[SourceQuality "1"]
[TimeControl "40/5400+30:1800+30"]

1. e4 {[%emt 0:02:47]} e6 {[%emt 0:00:34]} 2. d4 {[%emt 0:00:09]} d5 {[%emt 0:00:13]} 3. Nd2 {[%emt 0:00:06]} c5 {[%emt 0:01:15]} 4. exd5 {[%emt 0:00:10]} Qxd5 {[%emt 0:00:25]} 5. Ngf3 {[%emt 0:00:06]} cxd4 {[%emt 0:01:06]} 6. Bc4 {[%emt 0:00:06]} Qd6 {[%emt 0:03:59]} 7. O-O {[%emt 0:00:09]} Nf6 {[%emt 0:01:16]} 8. Nb3 {[%emt 0:00:08]} Nc6 {[%emt 0:00:46]} 9. Nbxd4 {[%emt 0:00:06]} Nxd4 {[%emt 0:00:54]} 10. Nxd4 {[%emt 0:00:06]} a6 {[%emt 0:01:19]} 11. Re1 {[%emt 0:00:07]} Qc7 {[%emt 0:00:21]} 12. Bf1 {[%emt 0:00:05]} Be7 {[%emt 0:05:26]} 13. Qf3 {[%emt 0:00:51]} O-O {[%emt 0:02:06]} 14. Bf4 {[%emt 0:01:16]} Qb6 {[%emt 0:04:20]} 15. Rad1 {[%emt 0:23:47]} e5 {[%emt 0:11:04]} 16. Qb3 {[%emt 0:01:30]} Qxb3 {[%emt 0:04:26]} 17. Nxb3 {[%emt 0:01:13]} Bf5 {[%emt 0:13:00]} 18. c3 {[%emt 0:12:38]} e4 {[%emt 0:07:00]} 19. h3 {[%emt 0:00:55]} h5 {[%emt 0:03:16]} 20. Na5 {[%emt 0:05:55]} b5 {[%emt 0:05:39]} 21. Nc6 {[%emt 0:00:57]} Bc5 {[%emt 0:02:42]} 22. Bd6 {[%emt 0:01:41]} Bxd6 {[%emt 0:01:05]} 23. Rxd6 {[%emt 0:00:10]} Be6 {[%emt 0:01:20]} 24. a3 {[%emt 0:00:52]} Rfe8 {[%emt 0:02:07]} 25. g3 {[%emt 0:02:26]} Bd5 {[%emt 0:03:58]} 26. Bg2 {[%emt 0:04:30]} Re6 {[%emt 0:06:06]} 27. Rxe6 {[%emt 0:00:15]} Bxe6 {[%emt 0:00:07]} 28. Kh2 {[%emt 0:04:36]} Re8 {[%emt 0:01:23]} 29. Nd4 {[%emt 0:06:30]} Bd5 {[%emt 0:00:37]} 30. Nc2 {[%emt 0:01:31]} Bc6 {[%emt 0:06:38]} 31. Rd1 {[%emt 0:00:49]} Nd5 {[%emt 0:01:20]} 32. Nd4 {[%emt 0:11:46]} Bb7 {[%emt 0:02:50]} 33. Re1 {[%emt 0:02:35]} Nb6 {[%emt 0:01:48]} 34. Nf5 {[%emt 0:01:56]} Re6 {[%emt 0:00:33]} 35. Rd1 {[%emt 0:02:53]} Nd5 {[%emt 0:00:57]} 36. Kg1 {[%emt 0:05:18]} g6 {[%emt 0:01:31]} 37. Ne3 {[%emt 0:02:40]} Re5 {[%emt 0:01:28]} 38. Kf1 {[%emt 0:04:49]} Nxe3+ {[%emt 0:01:14]} 39. fxe3 {[%emt 0:00:01]} Rd5 {[%emt 0:00:46]} 40. Rd4 {[%emt 0:00:00]} f5 {[%emt 0:00:00]} 41. Ke2 {[%emt 0:05:35]} Kf7 {[%emt 0:02:40]} 42. h4 {[%emt 0:06:10]} 1/2-1/2

[Event "HUN-ch U8-U18 2019"]
[Site "Balatonlelle"]
[Date "2019.06.23"]
[Round "3.8"]
[White "Pasztor, Balazs"]
[Black "Daroczi, Donat"]
[Result "1-0"]
[ECO "C02"]
[WhiteElo "2215"]
[BlackElo "2050"]
[Annotator "NA"]
[PlyCount "55"]
[EventDate "2019.06.21"]
[EventType "swiss"]
[EventCountry "HUN"]
[SourceTitle "playchess.com"]
[Source "ChessBase"]
[SourceQuality "1"]
[TimeControl "40/5400+30:1800+30"]

1. e4 {[%emt 0:00:23]} e6 {[%emt 0:00:23]} 2. d4 {[%emt 0:00:25]} d5 {[%emt 0:00:04]} 3. e5 {[%emt 0:00:15]} c5 {[%emt 0:00:11]} 4. c3 {[%emt 0:00:08]} Ne7 {[%emt 0:00:10]} 5. Nf3 {[%emt 0:01:26]} Nec6 {[%emt 0:00:09]} 6. a3 {[%emt 0:01:11]} a5 {[%emt 0:00:05]} 7. a4 {[%emt 0:02:16]} b6 {[%emt 0:06:00]} 8. Na3 {[%emt 0:01:09]} cxd4 {[%emt 0:02:35]} 9. cxd4 {[%emt 0:00:41]} Ba6 {[%emt 0:02:27]} 10. Nb5 {[%emt 0:02:05]} Be7 {[%emt 0:00:32]} 11. Be2 {[%emt 0:05:16]} Nb4 {[%emt 0:05:25]} 12. O-O {[%emt 0:02:51]} O-O {[%emt 0:00:12]} 13. Bf4 {[%emt 0:05:05]} Nd7 {[%emt 0:05:55]} 14. Rc1 {[%emt 0:04:07]} Bxb5 {[%emt 0:02:33]} 15. Bxb5 {[%emt 0:02:22]} Rc8 {[%emt 0:03:13]} 16. Qe2 {[%emt 0:03:54]} Rc7 {[%emt 0:04:23]} 17. h4 {[%emt 0:12:35]} Qb8 {[%emt 0:06:13]} 18. h5 {[%emt 0:04:16]} Rfc8 {[%emt 0:03:41]} 19. h6 {[%emt 0:03:40]} g6 {[%emt 0:11:08]} 20. Rxc7 Rxc7 {[%emt 0:05:08]} 21. Bg5 {[%emt 0:10:51]} Qd8 {[%emt 0:05:04]} 22. Qe3 {[%emt 0:01:02]} Bxg5 {[%emt 0:05:04]} 23. Nxg5 {[%emt 0:00:37]} Nc2 {[%emt 0:03:31]} 24. Qf4 {[%emt 0:02:14]} Qe7 {[%emt 0:00:10]} 25. Rc1 {[%emt 0:07:08]} f6 {[%emt 0:14:39]} 26. exf6 {[%emt 0:00:37]} Nxf6 {[%emt 0:00:12]} 27. Bd3 {[%emt 0:03:40]} Nh5 {[%emt 0:02:36]} 28. Qe5 {[%emt 0:00:44]} 1-0

[Event "HUN-ch U8-U18 2019"]
[Site "Balatonlelle"]
[Date "2019.06.23"]
[Round "3.9"]
[White "Leszko, Bence"]
[Black "Forgacs, Andras"]
[Result "1-0"]
[ECO "B10"]
[WhiteElo "2135"]
[BlackElo "1873"]
[Annotator "NA"]
[PlyCount "97"]
[EventDate "2019.06.21"]
[EventType "swiss"]
[EventCountry "HUN"]
[SourceTitle "playchess.com"]
[Source "ChessBase"]
[SourceQuality "1"]
[TimeControl "40/5400+30:1800+30"]

1. e4 {[%emt 0:00:00]} c6 {[%emt 0:00:25]} 2. Nc3 {[%emt 0:00:06]} d5 {[%emt 0:00:18]} 3. Nf3 {[%emt 0:00:04]} dxe4 {[%emt 0:00:17]} 4. Nxe4 {[%emt 0:00:03]} Bf5 {[%emt 0:00:55]} 5. Ng3 {[%emt 0:00:06]} Bg6 {[%emt 0:00:07]} 6. h4 {[%emt 0:00:04]} h6 {[%emt 0:00:15]} 7. Ne5 {[%emt 0:00:08]} Qd6 {[%emt 0:01:02]} 8. d4 {[%emt 0:00:06]} Nd7 {[%emt 0:00:17]} 9. Nxg6 {[%emt 0:00:05]} Qxg6 {[%emt 0:00:09]} 10. Bc4 {[%emt 0:00:02]} Qd6 {[%emt 0:02:05]} 11. O-O {[%emt 0:00:43]} e6 {[%emt 0:01:27]} 12. Re1 {[%emt 0:00:09]} Be7 {[%emt 0:01:10]} 13. Ne4 {[%emt 0:00:34]} Qb4 {[%emt 0:00:48]} 14. b3 {[%emt 0:02:55]} Ngf6 {[%emt 0:08:38]} 15. a4 {[%emt 0:09:35]} Qb6 {[%emt 0:02:14]} 16. Nxf6+ {[%emt 0:07:14]} Nxf6 {[%emt 0:00:05]} 17. a5 {[%emt 0:01:39]} Qc7 {[%emt 0:00:31]} 18. a6 {[%emt 0:06:56]} b6 {[%emt 0:00:58]} 19. Qf3 {[%emt 0:00:53]} Rd8 {[%emt 0:02:25]} 20. c3 {[%emt 0:02:44]} b5 {[%emt 0:00:36]} 21. Bd3 {[%emt 0:07:56]} b4 {[%emt 0:00:26]} 22. Bb2 {[%emt 0:15:03]} bxc3 {[%emt 0:02:50]} 23. Bxc3 {[%emt 0:00:01]} Nd5 {[%emt 0:00:20]} 24. Ba5 {[%emt 0:00:13]} Nb6 {[%emt 0:00:07]} 25. Rac1 {[%emt 0:01:42]} Rd5 {[%emt 0:20:37]} 26. b4 {[%emt 0:00:54]} Qd7 {[%emt 0:01:12]} 27. Be4 {[%emt 0:00:16]} O-O {[%emt 0:00:34]} 28. Bxb6 {[%emt 0:00:19]} axb6 {[%emt 0:00:07]} 29. Bxd5 {[%emt 0:00:03]} exd5 {[%emt 0:00:20]} 30. Qc3 {[%emt 0:01:20]} Rc8 {[%emt 0:05:10]} 31. g3 {[%emt 0:01:14]} Bf6 {[%emt 0:00:24]} 32. Qe3 {[%emt 0:01:08]} Ra8 {[%emt 0:00:36]} 33. Qd3 {[%emt 0:00:47]} Qd6 {[%emt 0:00:40]} 34. Red1 {[%emt 0:11:11]} Qxb4 {[%emt 0:08:44]} 35. Rxc6 {[%emt 0:00:43]} Qa5 {[%emt 0:00:21]} 36. Qb1 {[%emt 0:13:35]} Qxa6 {[%emt 0:02:10]} 37. Rxb6 {[%emt 0:00:16]} Qc4 {[%emt 0:05:21]} 38. Qb3 {[%emt 0:04:52]} Ra4 {[%emt 0:14:28]} 39. Rb8+ {[%emt 0:02:12]} Kh7 {[%emt 0:00:58]} 40. Qf3 {[%emt 0:00:00]} Qc2 {[%emt 0:00:00]} 41. Kg2 {[%emt 0:05:46]} Rxd4 {[%emt 0:11:37]} 42. Rxd4 {[%emt 0:00:38]} Bxd4 {[%emt 0:00:02]} 43. Qxf7 {[%emt 0:00:10]} Qe4+ {[%emt 0:18:48]} 44. Qf3 {[%emt 0:01:11]} Qxf3+ {[%emt 0:01:11]} 45. Kxf3 {[%emt 0:00:01]} Bf6 {[%emt 0:00:32]} 46. h5 {[%emt 0:01:19]} g6 {[%emt 0:02:27]} 47. Rb7+ {[%emt 0:00:08]} Bg7 {[%emt 0:00:01]} 48. Kg4 {[%emt 0:00:25]} d4 {[%emt 0:03:54]} 49. Rd7 {[%emt 0:00:05]} 1-0

[Event "HUN-ch U8-U18 2019"]
[Site "Balatonlelle"]
[Date "2019.06.23"]
[Round "3.9"]
[White "Kozsik, Bende Barnabas"]
[Black "Pasti, Aron"]
[Result "1/2-1/2"]
[ECO "C84"]
[WhiteElo "2089"]
[BlackElo "2193"]
[Annotator "ChessBase"]
[PlyCount "107"]
[EventDate "2019.06.21"]
[EventType "swiss"]
[EventCountry "HUN"]
[SourceTitle "playchess.com"]
[Source "ChessBase"]
[SourceQuality "1"]
[TimeControl "40/5400+30:1800+30"]

1. e4 {[%emt 0:00:07]} e5 {[%emt 0:00:11]} 2. Nf3 {[%emt 0:00:09]} Nc6 {[%emt 0:00:04]} 3. Bb5 {[%emt 0:00:26]} a6 {[%emt 0:00:05]} 4. Ba4 {[%emt 0:00:04]} Nf6 {[%emt 0:00:05]} 5. O-O {[%emt 0:00:24]} Be7 {[%emt 0:00:04]} 6. c3 {[%emt 0:01:26]} Nxe4 {[%emt 0:05:14]} 7. Re1 {[%emt 0:03:37]} Nf6 {[%emt 0:06:21]} 8. Bxc6 {[%emt 0:02:23]} dxc6 {[%emt 0:01:05]} 9. Nxe5 {[%emt 0:01:16]} O-O {[%emt 0:00:07]} 10. d4 {[%emt 0:00:34]} c5 {[%emt 0:03:01]} 11. Be3 {[%emt 0:01:32]} cxd4 {[%emt 0:01:19]} 12. Qxd4 {[%emt 0:06:58]} Bd6 {[%emt 0:02:20]} 13. Bg5 {[%emt 0:03:13]} Re8 {[%emt 0:02:15]} 14. Nd2 {[%emt 0:03:17]} c5 {[%emt 0:16:19]} 15. Qf4 {[%emt 0:00:59]} h6 {[%emt 0:09:34]} 16. Bxf6 {[%emt 0:21:40]} gxf6 {[%emt 0:05:10]} 17. Qg3+ {[%emt 0:01:06]} Kh7 {[%emt 0:09:35]} 18. Qd3+ {[%emt 0:01:25]} f5 {[%emt 0:01:59]} 19. Ndc4 {[%emt 0:05:20]} Bxe5 {[%emt 0:00:34]} 20. Nxe5 {[%emt 0:05:08]} Be6 {[%emt 0:03:44]} 21. Qf3 {[%emt 0:07:21]} Qd5 {[%emt 0:10:49]} 22. Qxd5 {[%emt 0:04:56]} Bxd5 {[%emt 0:00:06]} 23. Nd7 {[%emt 0:02:59]} Rxe1+ {[%emt 0:08:46]} 24. Rxe1 {[%emt 0:00:51]} Bxa2 {[%emt 0:00:20]} 25. Nxc5 {[%emt 0:01:19]} b6 {[%emt 0:01:09]} 26. Ra1 {[%emt 0:04:43]} Bc4 {[%emt 0:00:35]} 27. Nd7 {[%emt 0:00:23]} b5 {[%emt 0:11:33]} 28. Nb6 {[%emt 0:00:26]} Rb8 {[%emt 0:00:10]} 29. Rxa6 {[%emt 0:01:25]} Be2 {[%emt 0:01:21]} 30. Nd7 {[%emt 0:00:41]} Rd8 {[%emt 0:00:03]} 31. Rd6 {[%emt 0:00:22]} Kg7 {[%emt 0:00:30]} 32. Nf6 {[%emt 0:01:54]} Ra8 {[%emt 0:00:13]} 33. f3 {[%emt 0:00:23]} Bc4 {[%emt 0:00:26]} 34. Nd5 {[%emt 0:03:51]} Ra1+ {[%emt 0:00:20]} 35. Kf2 {[%emt 0:00:10]} Ra2 {[%emt 0:00:36]} 36. Kg3 {[%emt 0:03:23]} Rxb2 {[%emt 0:00:19]} 37. Ne3 {[%emt 0:01:25]} Be6 {[%emt 0:00:12]} 38. Rb6 {[%emt 0:01:16]} Rb3 {[%emt 0:01:50]} 39. Kf4 {[%emt 0:00:36]} Kf6 {[%emt 0:00:35]} 40. h4 {[%emt 0:00:00]} h5 {[%emt 0:00:00]} 41. g3 {[%emt 0:02:53]} Kg7 {[%emt 0:05:43]} 42. Rc6 {[%emt 0:03:40]} b4 {[%emt 0:01:25]} 43. Rb6 {[%emt 0:21:07]} Rxc3 {[%emt 0:01:46]} 44. Rxb4 {[%emt 0:00:10]} Kf6 {[%emt 0:02:39]} 45. Rd4 {[%emt 0:04:05]} Rc5 {[%emt 0:02:13]} 46. Nd1 {[%emt 0:02:46]} Rc2 {[%emt 0:00:54]} 47. Ne3 {[%emt 0:00:38]} Rc5 {[%emt 0:00:08]} 48. Nf1 {[%emt 0:01:42]} Ra5 {[%emt 0:01:42]} 49. Nd2 {[%emt 0:00:46]} Ra3 {[%emt 0:00:14]} 50. Nf1 {[%emt 0:02:10]} Ra5 {[%emt 0:00:18]} 51. Ne3 {[%emt 0:00:49]} Rc5 {[%emt 0:00:12]} 52. Rd6 {[%emt 0:01:44]} Ra5 {[%emt 0:00:18]} 53. Rd4 {[%emt 0:00:27]} Rc5 {[%emt 0:00:17]} 54. Rb4 {[%emt 0:01:41] Ke5+ Ke4+} 1/2-1/2

[Event "HUN-ch U8-U18 2019"]
[Site "Balatonlelle"]
[Date "2019.06.23"]
[Round "3.10"]
[White "Szilagyi, Norbert"]
[Black "Erseki, Aron"]
[Result "1/2-1/2"]
[ECO "B53"]
[WhiteElo "2093"]
[BlackElo "1854"]
[Annotator "NA"]
[PlyCount "82"]
[EventDate "2019.06.21"]
[EventType "swiss"]
[EventCountry "HUN"]
[SourceTitle "playchess.com"]
[Source "ChessBase"]
[SourceQuality "1"]
[TimeControl "40/5400+30:1800+30"]

1. e4 {[%emt 0:00:02]} c5 {[%emt 0:00:18]} 2. Nf3 {[%emt 0:00:11]} d6 {[%emt 0:00:26]} 3. d4 {[%emt 0:00:09]} cxd4 {[%emt 0:00:09]} 4. Qxd4 {[%emt 0:00:11]} Nc6 {[%emt 0:00:31]} 5. Bb5 {[%emt 0:00:19]} Bd7 {[%emt 0:05:27]} 6. Bxc6 {[%emt 0:00:08]} bxc6 {[%emt 0:01:02]} 7. c4 {[%emt 0:00:37]} Nf6 {[%emt 0:05:18]} 8. Nc3 {[%emt 0:06:22]} e5 {[%emt 0:08:10]} 9. Qd3 {[%emt 0:02:10]} Be7 {[%emt 0:01:13]} 10. O-O {[%emt 0:00:55]} h6 {[%emt 0:02:29]} 11. c5 {[%emt 0:20:45]} Bg4 {[%emt 0:06:13]} 12. Rd1 {[%emt 0:07:36]} Bxf3 {[%emt 0:13:25]} 13. Qxf3 {[%emt 0:01:15]} Qc7 {[%emt 0:01:51]} 14. cxd6 {[%emt 0:00:27]} Bxd6 {[%emt 0:00:07]} 15. Qg3 {[%emt 0:05:08]} g5 {[%emt 0:07:51]} 16. Qf3 {[%emt 0:02:23]} Ke7 {[%emt 0:10:08]} 17. Be3 {[%emt 0:03:23]} g4 {[%emt 0:03:10]} 18. Qf5 {[%emt 0:14:32]} Rag8 {[%emt 0:06:22]} 19. Rac1 {[%emt 0:02:58]} a6 {[%emt 0:00:48]} 20. Nd5+ {[%emt 0:01:28]} Nxd5 {[%emt 0:00:31]} 21. exd5 {[%emt 0:00:22]} c5 {[%emt 0:00:43]} 22. Bxc5 {[%emt 0:01:31]} Rg5 {[%emt 0:02:22]} 23. Bxd6+ {[%emt 0:00:56]} Qxd6 {[%emt 0:00:19]} 24. Qd3 {[%emt 0:01:51]} Rd8 {[%emt 0:01:12]} 25. Qb3 {[%emt 0:00:53]} Rb8 {[%emt 0:02:31]} 26. Qa4 {[%emt 0:01:28]} Rb6 {[%emt 0:01:52]} 27. Rc8 {[%emt 0:02:02]} Rg6 {[%emt 0:05:01]} 28. a3 {[%emt 0:07:51]} Kf6 {[%emt 0:03:03]} 29. Rc6 {[%emt 0:00:29]} Rxc6 {[%emt 0:00:19]} 30. dxc6 {[%emt 0:00:12]} Qc5 {[%emt 0:00:32]} 31. b4 {[%emt 0:00:39]} Qc4 {[%emt 0:00:16]} 32. c7 {[%emt 0:03:05]} Kg7 {[%emt 0:01:00]} 33. Qa5 {[%emt 0:01:18]} Re6 {[%emt 0:01:19]} 34. a4 {[%emt 0:03:02]} Qc3 {[%emt 0:01:40]} 35. Qd5 {[%emt 0:03:35]} Qxc7 {[%emt 0:00:48]} 36. b5 {[%emt 0:00:30]} axb5 37. axb5 {[%emt 0:00:11]} Qc2 {[%emt 0:01:36]} 38. g3 {[%emt 0:04:24]} Rf6 {[%emt 0:03:12]} 39. Rd2 {[%emt 0:01:11]} Qc1+ {[%emt 0:00:14]} 40. Kg2 {[%emt 0:00:00]} Qc3 {[%emt 0:00:00]} 41. Qa2 {[%emt 0:21:12]} Qb4 {[%emt 0:02:08]} 1/2-1/2

[Event "HUN-ch U8-U18 2019"]
[Site "Balatonlelle"]
[Date "2019.06.23"]
[Round "3.10"]
[White "Pervai, Laszlo"]
[Black "Fule, Simon"]
[Result "0-1"]
[ECO "C68"]
[WhiteElo "2033"]
[BlackElo "2148"]
[Annotator "NA"]
[PlyCount "78"]
[EventDate "2019.06.21"]
[EventType "swiss"]
[EventCountry "HUN"]
[SourceTitle "playchess.com"]
[Source "ChessBase"]
[SourceQuality "1"]
[TimeControl "40/5400+30:1800+30"]

1. e4 {[%emt 0:00:07]} e5 {[%emt 0:00:08]} 2. Nf3 {[%emt 0:00:11]} Nc6 {[%emt 0:00:06]} 3. Bb5 {[%emt 0:00:08]} a6 {[%emt 0:00:05]} 4. Bxc6 {[%emt 0:00:05]} dxc6 {[%emt 0:00:07]} 5. O-O {[%emt 0:00:14]} Bg4 {[%emt 0:00:18]} 6. h3 {[%emt 0:00:40]} h5 {[%emt 0:00:31]} 7. d3 {[%emt 0:00:37]} Qf6 {[%emt 0:01:07]} 8. Nbd2 {[%emt 0:00:48]} Ne7 {[%emt 0:02:46]} 9. b3 {[%emt 0:02:10]} Ng6 {[%emt 0:06:22]} 10. Bb2 {[%emt 0:05:29]} c5 {[%emt 0:07:19]} 11. Re1 {[%emt 0:15:38]} Be6 {[%emt 0:05:28]} 12. Nc4 {[%emt 0:01:27]} Bd6 {[%emt 0:00:50]} 13. Qd2 {[%emt 0:02:50]} Bxh3 14. Nfxe5 {[%emt 0:06:17]} Bxg2 {[%emt 0:32:14]} 15. Nxd6+ {[%emt 0:07:55]} cxd6 {[%emt 0:04:12]} 16. Nc4 {[%emt 0:02:50]} Qh4 {[%emt 0:08:55]} 17. f3 {[%emt 0:09:54]} Bxf3 {[%emt 0:01:03]} 18. Nxd6+ {[%emt 0:02:28]} Kd7 {[%emt 0:02:39]} 19. Nc4 {[%emt 0:01:37]} Qg3+ {[%emt 0:04:07]} 20. Kf1 {[%emt 0:00:40]} b5 {[%emt 0:02:40]} 21. d4 {[%emt 0:10:52]} Qh3+ {[%emt 0:03:21]} 22. Kf2 {[%emt 0:01:15]} Qg2+ {[%emt 0:00:05]} 23. Ke3 {[%emt 0:00:22]} bxc4 {[%emt 0:00:04]} 24. Qxg2 {[%emt 0:02:37]} Bxg2 {[%emt 0:00:06]} 25. dxc5 {[%emt 0:00:09]} Rhe8 {[%emt 0:02:43]} 26. Rad1+ {[%emt 0:00:42]} Kc7 {[%emt 0:00:17]} 27. Rd4 {[%emt 0:00:58]} Rxe4+ {[%emt 0:01:30]} 28. Rxe4 {[%emt 0:00:07]} Bxe4 {[%emt 0:00:05]} 29. Bxg7 {[%emt 0:00:26]} Bd5 {[%emt 0:02:37]} 30. Rf1 {[%emt 0:01:46]} cxb3 {[%emt 0:00:46]} 31. cxb3 {[%emt 0:00:06]} Be6 {[%emt 0:00:27]} 32. Bf6 {[%emt 0:01:37]} h4 {[%emt 0:00:21]} 33. b4 {[%emt 0:00:45]} h3 {[%emt 0:02:01]} 34. Rf2 {[%emt 0:00:12]} Kc6 35. a3 {[%emt 0:00:35]} Ra7 {[%emt 0:01:14]} 36. Rd2 {[%emt 0:00:59]} Rd7 {[%emt 0:00:50]} 37. Rxd7 {[%emt 0:00:23]} Bxd7 {[%emt 0:00:22]} 38. Kf2 {[%emt 0:00:04]} Nf4 {[%emt 0:00:27]} 39. Kg3 {[%emt 0:00:34]} Nh5+ {[%emt 0:00:06]} 0-1

[Event "HUN-ch U8-U18 2019"]
[Site "Balatonlelle"]
[Date "2019.06.23"]
[Round "3.11"]
[White "Kratzmajer, Akos Gyorgy"]
[Black "Blahota, Marcell"]
[Result "1/2-1/2"]
[ECO "B18"]
[WhiteElo "2048"]
[BlackElo "1793"]
[Annotator "NA"]
[PlyCount "129"]
[EventDate "2019.06.21"]
[EventType "swiss"]
[EventCountry "HUN"]
[SourceTitle "playchess.com"]
[Source "ChessBase"]
[SourceQuality "1"]
[TimeControl "40/5400+30:1800+30"]

1. e4 {[%emt 0:00:01]} c6 {[%emt 0:00:45]} 2. d4 {[%emt 0:00:04]} d5 {[%emt 0:00:08]} 3. Nc3 {[%emt 0:00:03]} dxe4 {[%emt 0:00:29]} 4. Nxe4 {[%emt 0:00:02]} Bf5 {[%emt 0:00:17]} 5. Ng3 {[%emt 0:00:01]} Bg6 {[%emt 0:00:19]} 6. Nh3 {[%emt 0:00:02]} h6 {[%emt 0:03:15]} 7. Nf4 {[%emt 0:01:05]} Bh7 {[%emt 0:00:14]} 8. Bc4 {[%emt 0:01:06]} Nf6 {[%emt 0:01:54]} 9. O-O {[%emt 0:00:36]} e6 {[%emt 0:04:29]} 10. Re1 {[%emt 0:02:56]} Nd5 {[%emt 0:01:13]} 11. Bxd5 {[%emt 0:01:55]} cxd5 {[%emt 0:00:31]} 12. Qh5 {[%emt 0:00:05]} Kd7 {[%emt 0:12:18]} 13. Qxf7+ {[%emt 0:00:27]} Qe7 {[%emt 0:00:30]} 14. Qxe7+ {[%emt 0:00:58]} Bxe7 {[%emt 0:00:12]} 15. c3 {[%emt 0:00:14]} Bd6 {[%emt 0:01:16]} 16. Ngh5 {[%emt 0:03:11]} Bxf4 {[%emt 0:13:17]} 17. Bxf4 {[%emt 0:00:57]} Nc6 {[%emt 0:01:19]} 18. Nxg7 {[%emt 0:00:26]} Be4 {[%emt 0:01:43]} 19. Bg3 {[%emt 0:15:09]} h5 {[%emt 0:09:40]} 20. Nxe6 {[%emt 0:04:06]} Kxe6 {[%emt 0:00:43]} 21. f3 {[%emt 0:00:04]} h4 {[%emt 0:01:05]} 22. Bf2 {[%emt 0:00:02]} Kf5 {[%emt 0:00:28]} 23. fxe4+ {[%emt 0:00:10]} dxe4 {[%emt 0:00:08]} 24. Rf1 {[%emt 0:00:43]} Kg4 {[%emt 0:10:09]} 25. h3+ {[%emt 0:00:59]} Kh5 {[%emt 0:01:57]} 26. Rae1 {[%emt 0:00:10]} Rae8 {[%emt 0:01:56]} 27. d5 {[%emt 0:00:06]} Na5 {[%emt 0:01:48]} 28. Bd4 {[%emt 0:01:21]} Rhg8 {[%emt 0:00:59]} 29. Rf5+ {[%emt 0:00:05]} Rg5 {[%emt 0:02:38]} 30. Rxg5+ {[%emt 0:00:05]} Kxg5 {[%emt 0:00:06]} 31. Bxa7 {[%emt 0:00:49]} Nc4 {[%emt 0:00:48]} 32. b3 {[%emt 0:00:05]} Nd6 {[%emt 0:01:21]} 33. Be3+ {[%emt 0:00:17]} Kg6 {[%emt 0:00:49]} 34. c4 {[%emt 0:00:10]} Nf5 {[%emt 0:02:44]} 35. c5 {[%emt 0:01:17]} Re5 {[%emt 0:18:27]} 36. d6 {[%emt 0:00:37]} Nxe3 {[%emt 0:01:25]} 37. Rxe3 {[%emt 0:00:02]} Kf5 {[%emt 0:00:15]} 38. b4 {[%emt 0:00:20]} Rd5 {[%emt 0:00:11]} 39. Kf2 {[%emt 0:00:31]} Kf4 {[%emt 0:01:26]} 40. Ke2 {[%emt 0:00:00]} Rg5 {[%emt 0:00:00]} 41. Kf2 {[%emt 0:03:26]} Rd5 {[%emt 0:01:28]} 42. a4 {[%emt 0:02:06]} Rd2+ {[%emt 0:09:37]} 43. Re2 {[%emt 0:01:34]} e3+ {[%emt 0:00:20]} 44. Ke1 {[%emt 0:01:02]} Rd4 {[%emt 0:05:46]} 45. b5 {[%emt 0:00:45]} Rc4 {[%emt 0:00:14]} 46. Rb2 {[%emt 0:00:51]} Rxc5 {[%emt 0:03:46]} 47. Rb4+ {[%emt 0:00:06]} Ke5 {[%emt 0:03:02]} 48. Rxh4 {[%emt 0:00:20]} Kxd6 {[%emt 0:00:16]} 49. Ke2 {[%emt 0:00:09]} Rc2+ {[%emt 0:00:46]} 50. Kxe3 {[%emt 0:00:07]} Rxg2 {[%emt 0:00:05]} 51. Rg4 {[%emt 0:00:36]} Rh2 {[%emt 0:01:44]} 52. h4 {[%emt 0:00:09]} Ke5 {[%emt 0:00:42]} 53. Kf3 {[%emt 0:01:00]} Ra2 {[%emt 0:00:57]} 54. Rb4 {[%emt 0:03:54]} Kf5 {[%emt 0:01:49]} 55. Ke3 {[%emt 0:00:06]} Ke5 {[%emt 0:00:31]} 56. Kd3 {[%emt 0:00:07]} Ra3+ {[%emt 0:00:57]} 57. Kc2 {[%emt 0:04:44]} b6 {[%emt 0:02:51]} 58. Rg4 {[%emt 0:01:04]} Kf5 {[%emt 0:02:54]} 59. Rc4 {[%emt 0:01:02]} Ke5 {[%emt 0:01:36]} 60. Kb2 {[%emt 0:00:39]} Rh3 {[%emt 0:00:25]} 61. a5 {[%emt 0:00:58]} Kd5 {[%emt 0:04:08]} 62. a6 {[%emt 0:01:54]} Kxc4 {[%emt 0:00:06]} 63. a7 {[%emt 0:00:11]} Rh2+ {[%emt 0:00:05]} 64. Kb1 {[%emt 0:00:20]} Rh1+ {[%emt 0:00:10]} 65. Kb2 {[%emt 0:00:03]} 1/2-1/2

[Event "HUN-ch U8-U18 2019"]
[Site "Balatonlelle"]
[Date "2019.06.23"]
[Round "3.11"]
[White "Kun, Balint"]
[Black "Bilku, Andras"]
[Result "1/2-1/2"]
[ECO "B10"]
[WhiteElo "1813"]
[BlackElo "1907"]
[Annotator "NA"]
[PlyCount "70"]
[EventDate "2019.06.21"]
[EventType "swiss"]
[EventCountry "HUN"]
[SourceTitle "playchess.com"]
[Source "ChessBase"]
[SourceQuality "1"]
[TimeControl "40/5400+30:1800+30"]

1. e4 {[%emt 0:00:02]} c6 {[%emt 0:00:03]} 2. Nc3 {[%emt 0:00:52]} d5 {[%emt 0:00:05]} 3. Nf3 {[%emt 0:00:06]} dxe4 {[%emt 0:00:04]} 4. Nxe4 {[%emt 0:00:05]} Nf6 {[%emt 0:00:03]} 5. Nxf6+ {[%emt 0:00:09]} exf6 {[%emt 0:00:10]} 6. d4 {[%emt 0:00:02]} Bf5 {[%emt 0:00:16]} 7. Bd3 {[%emt 0:04:54]} Be7 {[%emt 0:00:49]} 8. O-O {[%emt 0:01:41]} Bxd3 {[%emt 0:00:04]} 9. Qxd3 O-O {[%emt 0:00:08]} 10. Be3 {[%emt 0:07:22]} Nd7 {[%emt 0:00:08]} 11. Rfd1 {[%emt 0:04:44]} Nb6 {[%emt 0:01:58]} 12. c4 {[%emt 0:07:17]} Rc8 {[%emt 0:00:47]} 13. Rac1 {[%emt 0:02:13]} g6 {[%emt 0:01:16]} 14. Qb3 {[%emt 0:05:00]} Qc7 {[%emt 0:02:31]} 15. d5 {[%emt 0:14:35]} c5 {[%emt 0:00:20]} 16. Qc2 {[%emt 0:01:14]} Rfd8 {[%emt 0:00:58]} 17. b3 {[%emt 0:02:46]} Bf8 {[%emt 0:09:08]} 18. Bd2 {[%emt 0:02:46]} Nd7 {[%emt 0:01:06]} 19. Bc3 {[%emt 0:02:38]} Qd6 {[%emt 0:00:57]} 20. Qb2 {[%emt 0:03:51]} Bg7 {[%emt 0:00:59]} 21. Re1 {[%emt 0:04:55]} Re8 {[%emt 0:00:19]} 22. a3 {[%emt 0:01:53]} b6 {[%emt 0:00:30]} 23. Re2 {[%emt 0:01:28]} Rxe2 {[%emt 0:00:55]} 24. Qxe2 {[%emt 0:00:04]} Ne5 {[%emt 0:00:24]} 25. Nxe5 {[%emt 0:04:01]} fxe5 {[%emt 0:00:31]} 26. b4 {[%emt 0:01:39]} Re8 {[%emt 0:01:34]} 27. bxc5 {[%emt 0:00:51]} bxc5 {[%emt 0:00:08]} 28. Rb1 {[%emt 0:01:05]} Rb8 {[%emt 0:00:18]} 29. Qc2 {[%emt 0:03:41]} Kf8 {[%emt 0:01:14]} 30. Rb2 {[%emt 0:03:56]} Rxb2 {[%emt 0:02:15]} 31. Qxb2 {[%emt 0:00:06]} Qb6 {[%emt 0:00:20]} 32. Qxb6 {[%emt 0:06:27]} axb6 {[%emt 0:00:36]} 33. a4 {[%emt 0:00:02]} Ke7 {[%emt 0:00:25]} 34. Kf1 {[%emt 0:01:01]} Kd6 {[%emt 0:00:17]} 35. Ke2 {[%emt 0:00:51]} Bh6 {[%emt 0:00:22]} 1/2-1/2